bitfinex/quotes_ETHUSD_20250115
["timestamp","ask_amount","ask_price","bid_price","bid_amount"]
[1736899847129,0.06048247,3227.0,3226.8,0.03098639]
[1736899847334,0.06048247,3227.0,3226.7,3.09906]
[1736899847844,0.06048247,3227.0,3226.5,0.66411629]
[1736899848156,0.06048247,3227.0,3226.2,8.70510803]
[1736899848353,0.06048247,3227.0,3226.2,5.60556803]
[1736899848641,0.06048247,3227.0,3226.3,3.09952]
[1736899849941,0.06048247,3227.0,3226.4,3.0994]
[1736899850236,0.06048247,3227.0,3226.5,6.02549741]
[1736899850575,0.06048247,3227.0,3226.5,3.52874715]
[1736899850871,0.8231,3227.1,3226.5,2.92619741]
[1736899851976,0.06045137,3227.0,3226.5,2.92619741]
[1736899852656,0.06045137,3227.0,3226.5,6.02550741]
[1736899853664,0.06045137,3227.0,3226.6,3.13020844]
[1736899853866,0.06045137,3227.0,3226.6,0.03098844]
[1736899854077,0.06045137,3227.0,3226.8,3.09903]
[1736899854226,0.8231,3227.1,3226.8,3.09903]
[1736899854541,0.8231,3227.1,3226.7,0.29571858]
[1736899854938,0.0605124,3227.0,3226.7,0.29571858]
[1736899855140,0.0605124,3227.0,3226.7,3.39483858]
[1736899855337,0.0605124,3227.0,3226.8,3.29976688]
[1736899855543,0.786,3227.7,3227.1,3.09872]
[1736899855867,0.06056236,3227.6,3227.2,3.09865]
[1736899856429,0.06056236,3227.6,3227.0,3.0988]
[1736899856831,0.786,3227.7,3226.8,3.26878011]
[1736899857065,0.786,3227.7,3227.0,3.09876]
[1736899857366,0.0606234,3227.6,3227.0,3.09876]
[1736899857540,0.786,3227.7,3227.1,3.09874]
[1736899857726,0.0606234,3227.6,3227.0,3.09883]
[1736899857928,0.786,3227.7,3227.0,3.09883]
[1736899858271,0.0606234,3227.6,3227.1,3.09875]
[1736899858774,0.0606234,3227.6,3227.1,3.12973214]
[1736899858925,0.0606234,3227.6,3227.1,3.09875]
[1736899860280,0.0606234,3227.6,3226.9,3.81739701]
[1736899860557,0.0606234,3227.6,3226.5,6.02547741]
[1736899860558,0.786,3227.4,3226.5,6.02547741]
[1736899860767,0.786,3227.2,3226.5,4.16792515]
[1736899860977,0.786,3227.5,3226.8,2.92619741]
[1736899861272,0.06078985,3227.4,3227.0,3.09878]
[1736899861440,0.06078985,3227.4,3227.1,0.03098373]
[1736899861623,0.06078985,3227.4,3227.0,3.09878]
[1736899862534,0.06078985,3227.4,3226.8,6.02521741]
[1736899862832,0.09293486,3227.4,3226.6,3.09917]
[1736899863072,0.09293486,3227.4,3226.5,7.16792515]
[1736899863073,3.91049,3227.3,3226.5,2.92619741]
[1736899863253,0.03214501,3227.2,3226.6,3.09916]
[1736899863568,0.06075102,3227.2,3226.8,3.09898]
[1736899863760,0.8119,3227.3,3226.7,0.0309885]
[1736899863953,0.8119,3227.3,3226.6,3.09917]
[1736899864883,0.03214501,3227.2,3226.4,3.09937]
[1736899865034,0.8119,3227.1,3226.4,3.09937]
[1736899865402,0.8119,3227.1,3226.2,6.02575741]
[1736899865558,0.8119,3226.9,3225.9,3.09985]
[1736899865760,0.8119,3226.7,3226.2,3.09953]
[1736899865965,0.06057345,3226.6,3226.3,2.92619741]
[1736899866138,0.8119,3227.0,3226.6,3.09917]
[1736899866335,0.06053461,3226.9,3226.5,3.09933]
[1736899866558,0.09267962,3226.9,3226.0,2.92619741]
[1736899866892,0.8119,3226.8,3226.1,3.0]
[1736899867376,0.06049577,3226.7,3226.1,3.03099247]
[1736899867573,0.06049577,3226.7,3226.1,6.0997]
[1736899867940,0.06049577,3226.7,3226.1,6.13069247]
[1736899868783,0.06049577,3226.7,3226.1,6.0997]
[1736899868941,0.06049577,3226.7,3226.1,3.0997]
[1736899869144,0.8119,3226.6,3225.9,3.09986]
[1736899869342,0.06037367,3226.5,3225.9,3.09986]
[1736899869541,0.84404501,3226.6,3225.9,3.09986]
[1736899869766,0.06036257,3226.5,3225.9,3.09986]
[1736899869968,0.06036257,3226.5,3226.0,3.09979]
[1736899870164,0.8119,3226.6,3226.1,0.03099316]
[1736899870473,0.0601894,3226.5,3226.0,2.92619741]
[1736899870843,0.8119,3226.6,3226.0,2.92619741]
[1736899871038,0.8119,3226.6,3226.1,3.0997]
[1736899871269,0.8119,3226.6,3226.0,2.92619741]
[1736899871864,0.8119,3226.6,3225.7,2.92619741]
[1736899871865,0.06002289,3226.5,3225.7,2.92619741]
[1736899872079,0.8119,3226.4,3225.4,3.10032]
[1736899872250,0.8119,3226.2,3225.4,3.10032]
[1736899872586,0.09207909,3226.1,3225.5,3.10026]
[1736899872758,0.8119,3226.2,3225.7,2.92619741]
[1736899873151,0.8119,3226.2,3225.9,3.09989]
[1736899873373,0.05968868,3226.1,3225.9,3.09989]
[1736899873750,0.05968868,3226.1,3225.7,6.02624741]
[1736899874085,0.8119,3226.2,3225.7,6.02624741]
[1736899875853,0.03214501,3226.1,3225.4,2.92619741]
[1736899876193,0.87162755,3226.0,3225.3,3.10044]
[1736899876557,0.87162755,3226.0,3225.4,3.10039]
[1736899876882,1.27196981,3226.0,3225.4,3.10039]
[1736899877597,0.87162755,3226.0,3225.4,2.92619741]
[1736899877762,0.87162755,3226.0,3225.5,3.10027]
[1736899879605,0.05972755,3226.0,3225.7,6.02629741]
[1736899879903,0.8086,3226.2,3225.4,2.92619741]
[1736899880068,0.05964426,3225.9,3225.4,2.92619741]
[1736899880266,0.03214501,3226.1,3225.4,2.92619741]
[1736899881085,0.03214501,3226.1,3225.5,3.10027]
[1736899881271,0.03214501,3226.1,3225.4,2.92619741]
[1736899881471,0.05964426,3226.0,3225.4,2.92619741]
[1736899881683,0.8086,3225.9,3225.4,2.92619741]
[1736899882303,0.05964426,3225.8,3225.4,2.92619741]
[1736899882927,0.05964426,3225.8,3225.3,3.10044]
[1736899883126,3.9087,3225.7,3224.8,8.48091]
[1736899883404,0.8086,3225.5,3224.8,5.38]
[1736899883604,0.05909451,3225.4,3224.8,5.38]
[1736899884129,0.09123952,3225.4,3224.8,5.38]
[1736899884284,0.09123952,3225.4,3224.7,6.10101]
[1736899885204,0.09123952,3225.4,3224.8,3.10094]
[1736899885909,0.05909451,3225.4,3225.2,2.92619741]
[1736899886208,0.05909451,3225.4,3225.3,9.05768115]
[1736899886506,6.86e-06,3225.4,3225.3,10.39797741]
[1736899886804,0.8086,3226.4,3226.0,3.09979]
[1736899887012,5.32,3226.9,3226.0,3.09979]
[1736899887013,0.04497724,3226.3,3226.2,3.09962]
[1736899887216,0.04497724,3226.3,3226.2,6.64885585]
[1736899887414,5.32,3227.5,3226.2,6.64885585]
[1736899887415,0.8086,3227.2,3226.2,6.64885585]
[1736899887583,0.8086,3227.2,3226.5,3.09932]
[1736899887785,0.04593357,3227.1,3226.6,0.03098868]
[1736899887980,0.04593357,3227.1,3226.5,3.09932]
[1736899888527,0.04593357,3227.1,3226.6,3.09923]
[1736899888823,0.04593357,3227.1,3226.7,2.95718609]
[1736899888983,0.04593357,3227.1,3226.8,3.09904]
[1736899889180,0.8086,3227.2,3226.8,3.09904]
[1736899889381,0.04658938,3227.1,3226.8,3.09904]
[1736899889986,0.04658938,3227.1,3226.5,3.0993]
[1736899889987,0.04658938,3227.1,3227.0,2.92619741]
[1736899890186,0.8086,3227.5,3227.0,6.02504741]
[1736899890425,0.04675606,3227.4,3227.0,6.02504741]
[1736899891212,0.04675606,3227.4,3227.1,3.09867]
[1736899891411,5.32,3228.5,3227.1,3.09867]
[1736899891412,0.7624,3227.8,3227.3,2.92619741]
[1736899891611,0.7624,3227.8,3227.4,3.1294106]
[1736899891824,0.04730049,3227.7,3227.4,3.1294106]
[1736899892196,0.7624,3227.8,3227.4,3.1294106]
[1736899892403,0.04730049,3227.7,3227.4,3.1294106]
[1736899892604,0.7624,3227.8,3227.4,3.1294106]
[1736899892815,0.04730049,3227.7,3227.4,3.1294106]
[1736899893105,0.04730049,3227.7,3227.6,6.02446741]
[1736899893312,0.7758,3228.4,3227.7,3.09811]
[1736899893827,0.04757817,3228.3,3228.0,3.09787]
[1736899894035,0.04757817,3228.3,3228.0,3.12884523]
[1736899894390,0.04757817,3228.3,3228.2,2.92619741]
[1736899894598,3.40771392,3228.8,3228.2,6.02389741]
[1736899894798,0.38876603,3228.7,3228.2,6.02389741]
[1736899895211,0.04799464,3228.7,3228.2,6.02389741]
[1736899895610,0.04799464,3228.7,3228.3,0.03097273]
[1736899895935,0.7758,3229.2,3228.5,2.92619741]
[1736899896300,0.08076697,3229.1,3228.5,2.92619741]
[1736899896727,0.04862196,3229.1,3228.5,6.02360741]
[1736899898335,0.03214501,3229.1,3228.3,3.0]
[1736899898640,0.04867189,3229.0,3228.4,3.09749]
[1736899900515,0.03214501,3229.1,3228.4,3.09749]
[1736899900714,0.04891052,3228.9,3228.3,3.0]
[1736899900917,0.03214501,3229.1,3228.3,6.09758]
[1736899901117,0.04890497,3228.8,3228.3,6.09758]
[1736899901342,0.03214501,3229.1,3228.3,6.12855044]
[1736899901540,0.04890497,3228.7,3228.3,6.12855044]
[1736899901706,0.42260451,3229.1,3228.3,6.09758]
[1736899902111,0.04890497,3229.0,3228.3,3.0]
[1736899902315,0.04890497,3229.0,3228.2,2.92619741]
[1736899902820,0.04890497,3229.0,3228.2,2.95717062]
[1736899903025,0.3145755,3228.9,3228.2,2.95717062]
[1736899903427,0.0491547,3228.8,3228.2,2.95717062]
[1736899903748,0.0491547,3228.8,3228.2,2.92619741]
[1736899903946,0.0491547,3228.8,3228.2,6.02387741]
[1736899904136,0.0491547,3228.8,3228.4,3.09747]
[1736899904339,0.0491547,3228.8,3228.2,6.02385741]
[1736899904640,0.0491547,3228.7,3228.2,6.02385741]
[1736899905039,3.12898501,3229.1,3228.2,6.02385741]
[1736899905350,0.0491547,3228.6,3228.2,6.02385741]
[1736899905555,0.6904785,3229.0,3228.3,3.12857212]
[1736899905856,0.6904785,3229.0,3228.3,3.0976]
[1736899906028,0.04913805,3228.9,3228.3,3.0976]
[1736899907757,0.04913805,3228.9,3228.3,3.12857212]
[1736899908280,0.04913805,3228.9,3228.3,3.0976]
[1736899908561,0.04913805,3228.9,3228.2,2.92619741]
[1736899908737,0.43600221,3228.9,3228.2,2.92619741]
[1736899908938,0.43600221,3228.9,3228.3,3.0976]
[1736899909140,0.04913805,3228.9,3228.5,2.92619741]
[1736899909336,0.04913805,3228.9,3228.7,3.09721]
[1736899909544,0.04898823,3228.8,3228.7,3.09721]
[1736899911141,0.08123867,3228.9,3228.2,2.92619741]
[1736899912469,0.04909366,3228.9,3228.2,6.02388741]
[1736899913417,0.08123867,3228.9,3228.2,6.02388741]
[1736899913732,0.04909366,3228.9,3228.2,6.02388741]
[1736899916091,0.04909366,3228.9,3228.2,2.92619741]
[1736899916092,0.08123867,3228.9,3228.2,2.92619741]
[1736899916291,0.39389987,3228.8,3228.2,2.92619741]
[1736899916527,0.04909366,3228.9,3228.2,2.95716958]
[1736899916734,0.7608,3229.0,3228.5,6.02355741]
[1736899916906,0.04909366,3228.8,3228.6,0.03096976]
[1736899917091,0.04896603,3228.9,3228.6,0.03096976]
[1736899917290,0.7608,3229.0,3228.6,0.03096976]
[1736899917514,0.04896603,3228.8,3228.6,3.12825976]
[1736899917702,0.7725,3229.4,3228.6,3.73370548]
[1736899917910,0.04896603,3228.7,3228.6,3.73370548]
[1736899918108,0.7725,3229.4,3228.6,3.73370548]
[1736899918307,0.80464501,3229.4,3228.6,3.12825976]
[1736899918535,0.04899933,3229.3,3228.7,3.09721]
[1736899920421,0.04899933,3229.3,3228.8,2.95716603]
[1736899920620,5.32,3229.5,3229.1,6.02301741]
[1736899920863,0.04917687,3229.4,3229.2,3.09674]
[1736899921027,0.04917687,3229.4,3229.2,3.12770423]
[1736899921205,0.7725,3230.1,3229.2,3.12770423]
[1736899921403,0.04917687,3230.0,3229.2,3.12770423]
[1736899921718,0.04917687,3230.0,3229.2,0.03096423]
[1736899922021,0.04917687,3230.0,3229.3,3.09663]
[1736899922220,0.04917687,3230.0,3229.2,0.03096423]
[1736899922634,0.97293256,3230.0,3229.2,0.03096423]
[1736899923743,0.97293256,3230.0,3229.3,3.09663]
[1736899923949,0.04917687,3230.0,3229.4,6.02273741]
[1736899925169,0.04917687,3230.0,3229.5,0.03096131]
[1736899925475,0.04917687,3230.0,3229.7,2.92619741]
[1736899925750,0.04917687,3230.0,3229.9,3.09607]
[1736899925922,0.7717,3230.5,3230.0,3.09593]
[1736899926116,0.7717,3230.5,3230.0,2.92619741]
[1736899926318,0.0497261,3230.4,3230.0,2.92619741]
[1736899926519,0.0497261,3230.4,3230.0,2.95715374]
[1736899926913,0.0497261,3230.4,3230.0,2.92619741]
[1736899927849,0.0497261,3230.4,3229.7,6.02242741]
[1736899928049,0.7717,3230.3,3229.4,3.54339711]
[1736899928251,0.7717,3230.1,3229.2,3.09664]
[1736899928442,0.42210951,3230.0,3229.1,2.92619741]
[1736899928760,0.47236804,3230.0,3229.1,5.92619741]
[1736899929057,0.7717,3229.9,3229.1,2.92619741]
[1736899929380,3.86809,3229.6,3228.8,2.92619741]
[1736899929526,3.86834,3229.4,3228.5,2.92619741]
[1736899929874,0.7717,3229.2,3228.5,2.92619741]
[1736899930080,0.03214501,3229.1,3228.5,2.92619741]
[1736899930238,0.03214501,3229.1,3228.2,6.81056741]
[1736899930442,0.04998678,3229.0,3228.3,3.0]
[1736899930642,0.04998678,3229.0,3228.5,2.92619741]
[1736899931258,0.04982593,3228.9,3228.8,6.02331741]
[1736899931458,0.04982593,3228.9,3228.8,9.81001741]
[1736899931662,0.7717,3230.5,3228.9,3.55]
[1736899931957,0.7717,3230.5,3229.7,3.09626]
[1736899932115,0.7717,3230.5,3229.2,3.09674]
[1736899932116,0.04952087,3230.4,3229.9,2.92619741]
[1736899932320,0.04952087,3230.4,3230.2,2.92619741]
[1736899932861,0.04937663,3230.3,3230.2,2.92619741]
[1736899933417,0.7717,3231.2,3230.3,3.0]
[1736899933581,0.7717,3231.2,3229.9,0.29571556]
[1736899933582,0.7717,3231.2,3230.6,2.92619741]
[1736899933743,0.04962627,3231.1,3230.6,2.92619741]
[1736899934947,0.08177128,3231.1,3230.3,2.92619741]
[1736899935272,0.47659241,3231.1,3230.3,2.92619741]
[1736899935458,0.7717,3230.9,3229.9,3.09598]
[1736899935630,0.03214501,3230.8,3229.9,3.09598]
[1736899935842,0.03214501,3230.8,3229.9,6.09598]
[1736899936164,0.04962627,3230.7,3229.9,6.09598]
[1736899936541,0.03214501,3230.8,3229.9,6.09598]
[1736899936743,0.03214501,3230.8,3229.5,0.193]
[1736899936744,0.7717,3230.6,3229.5,3.53818189]
[1736899937071,0.7717,3230.6,3229.8,3.09613]
[1736899937365,0.08230911,3230.5,3229.8,3.70883874]
[1736899937567,0.08230911,3230.5,3229.8,3.09613]
[1736899937774,0.03214501,3230.5,3229.8,3.09613]
[1736899937955,0.0501641,3230.4,3229.8,3.09613]
[1736899938868,0.03214501,3230.5,3229.8,3.09613]
[1736899939160,0.0501641,3230.3,3229.8,3.09613]
[1736899939374,0.03214501,3230.5,3229.8,3.09613]
[1736899939566,0.0501641,3230.2,3229.8,3.09613]
[1736899939732,0.03214501,3230.5,3229.8,3.09613]
[1736899940069,0.0501641,3230.4,3229.8,3.09613]
[1736899942135,0.0501641,3230.4,3229.9,3.09604]
[1736899942336,0.0501641,3230.4,3229.9,3.34056159]
[1736899942568,0.7839,3230.6,3229.7,3.09618]
[1736899942747,0.03214501,3230.5,3229.6,3.0]
[1736899942947,0.08282492,3230.5,3229.6,3.0]
[1736899943149,3.09568,3230.3,3229.3,3.09661]
[1736899943456,0.05067991,3230.2,3229.5,3.09644]
[1736899943773,0.05067991,3230.2,3229.7,3.09625]
[1736899943969,0.03214501,3230.3,3229.7,3.09625]
[1736899944169,0.05067991,3230.1,3229.7,3.09625]
[1736899944334,0.03214501,3230.3,3229.7,3.09625]
[1736899944540,0.05067991,3230.0,3229.6,0.31274014]
[1736899944872,0.05067991,3229.9,3229.6,3.40907014]
[1736899945273,0.03214501,3230.3,3229.6,3.40907014]
[1736899945467,0.05067991,3229.8,3229.5,3.0]
[1736899945667,0.05067991,3229.8,3229.4,3.09653]
[1736899945668,0.7839,3230.2,3229.2,3.09672]
[1736899945869,0.05067991,3229.7,3229.1,3.73118189]
[1736899946242,3.12808501,3230.1,3229.1,3.73118189]
[1736899946444,0.05067991,3230.0,3229.1,3.53818189]
[1736899946652,0.81604501,3229.9,3228.8,0.8254]
[1736899946976,0.7839,3229.6,3228.6,3.09729]
[1736899947194,0.03214501,3229.5,3228.5,3.80346296]
[1736899947336,0.03214501,3229.5,3228.6,0.03096655]
[1736899947539,0.05058568,3229.4,3228.7,3.09715]
[1736899947776,0.03214501,3229.5,3228.6,0.6307988]
[1736899947980,0.03214501,3229.5,3228.5,3.90083296]
[1736899947981,3.12860501,3229.5,3228.5,3.91419714]
[1736899948282,0.83423058,3229.4,3228.6,3.0973]
[1736899948439,0.83423058,3229.4,3228.8,3.0]
[1736899948644,0.05033058,3229.4,3228.9,0.03096534]
[1736899948857,5.32,3229.7,3229.2,3.09672]
[1736899949680,0.04986476,3229.6,3229.2,3.09672]
[1736899951496,0.04986476,3229.6,3229.3,3.09663]
[1736899951797,0.04986476,3229.6,3229.3,6.66569573]
[1736899952101,0.7839,3230.1,3229.4,3.03096142]
[1736899952283,0.7839,3230.1,3229.7,3.09624]
[1736899952595,0.05003673,3230.0,3229.7,3.09624]
[1736899953794,0.05003673,3230.0,3229.8,0.0309587]
[1736899953963,5.32,3230.3,3229.9,3.09607]
[1736899954164,0.7839,3230.4,3229.9,3.09607]
[1736899954383,0.05003673,3230.2,3229.9,3.40877287]
[1736899954564,0.05014763,3230.3,3229.9,3.40877287]
[1736899954766,0.7839,3230.4,3229.9,3.40877287]
[1736899954974,0.05014763,3230.2,3229.9,3.40877287]
[1736899955178,0.7839,3230.4,3229.9,3.40877287]
[1736899955502,0.05014763,3230.3,3229.9,3.40877287]
[1736899955885,0.05014763,3230.3,3230.0,0.34087729]
[1736899956090,0.05014763,3230.3,3229.7,6.09618]
[1736899956386,0.05014763,3230.3,3229.8,3.09615]
[1736899956591,0.7839,3230.4,3229.8,3.09615]
[1736899957090,0.08266415,3230.3,3229.5,3.75333433]
[1736899958104,0.05051914,3230.3,3229.8,3.09614]
[1736899958302,0.05051914,3230.3,3230.0,2.92051596]
[1736899958526,0.7839,3230.8,3230.3,3.09563]
[1736899958731,0.7839,3230.8,3230.4,0.03095253]
[1736899959041,0.05065775,3230.7,3230.4,0.03095253]
[1736899959342,0.05065775,3230.7,3230.3,6.01614596]
[1736899959632,0.05065775,3230.7,3230.3,6.61776056]
[1736899959841,0.05065775,3230.7,3230.0,6.01643596]
[1736899960038,0.08280276,3230.7,3230.0,6.01643596]
[1736899961335,0.08280276,3230.7,3229.7,12.00857529]
[1736899961512,0.7839,3230.6,3229.7,9.08805933]
[1736899961705,0.03214501,3230.5,3229.7,9.08805933]
[1736899961899,0.42838766,3230.5,3229.7,5.99184933]
[1736899962112,3.9305159,3230.4,3229.4,2.92051596]
[1736899962333,0.03214501,3230.3,3229.4,6.01705596]
[1736899962533,0.03214501,3230.3,3229.4,2.92051596]
[1736899962734,0.0511123,3230.2,3229.5,3.09644]
[1736899964122,0.0511123,3230.2,3229.4,2.95147599]
[1736899964318,0.0511123,3230.2,3229.6,3.09635]
[1736899964654,0.7839,3230.4,3229.6,3.09635]
[1736899964842,0.0511123,3230.1,3229.6,3.09635]
[1736899965155,0.0511123,3230.0,3229.8,3.0]
[1736899965362,0.7839,3230.8,3230.1,3.09583]
[1736899965514,0.7839,3230.8,3230.1,3.12678505]
[1736899965863,0.05075198,3230.7,3230.2,3.09577]
[1736899966018,0.05075198,3230.7,3230.1,0.03095342]
[1736899966219,0.05075198,3230.7,3230.4,3.09558]
[1736899966415,0.05075198,3230.7,3230.5,3.09549]
[1736899966620,6.1039,3231.1,3230.5,3.09549]
[1736899967279,0.05079636,3231.0,3230.5,3.09549]
[1736899968760,0.05079636,3231.0,3230.3,2.95146814]
[1736899968957,0.08294137,3231.0,3230.3,3.09565]
[1736899970355,0.08294137,3231.0,3230.3,3.76386817]
[1736899970736,0.08294137,3231.0,3229.9,6.597126]
[1736899970737,0.7913,3230.9,3229.9,0.501096]
[1736899970947,0.7913,3230.9,3230.2,3.09577]
[1736899971126,0.08319633,3230.8,3230.1,3.09587]
[1736899971552,0.05105132,3230.8,3230.1,3.09587]
[1736899971961,0.05105132,3230.8,3230.2,3.09569]
[1736899974366,0.05105132,3230.8,3230.3,0.03095497]
[1736899974566,0.05105132,3230.8,3230.5,3.09547]
[1736899974771,0.05105132,3230.8,3230.3,3.12660497]
[1736899974968,0.05105132,3230.8,3230.3,3.09565]
[1736899975271,0.05105132,3230.8,3230.2,3.60471609]
[1736899975565,0.05105132,3230.8,3230.3,0.96210721]
[1736899975771,0.05105132,3230.8,3230.4,0.03095222]
[1736899976131,0.05105132,3230.8,3230.6,0.8094]
[1736899976335,0.05105132,3230.8,3230.6,3.90472]
[1736899976547,5.32,3231.4,3230.6,3.90472]
[1736899976743,0.05102916,3230.7,3230.6,3.90472]
[1736899976948,5.32,3231.4,3230.6,3.90472]
[1736899977148,0.05102916,3230.7,3230.6,3.90472]
[1736899977362,5.32,3231.4,3230.6,3.90472]
[1736899977763,0.05102916,3231.3,3230.6,3.90472]
[1736899978165,0.05102916,3231.3,3230.8,3.0952]
[1736899978591,0.05102916,3231.3,3230.6,0.8094]
[1736899978793,0.05102916,3231.3,3230.6,3.09536]
[1736899979095,3.09503,3231.0,3230.1,3.09584]
[1736899979392,0.7913,3231.1,3230.7,3.09529]
[1736899979554,2.92051596,3232.3,3230.4,0.8094]
[1736899979555,0.05156118,3230.9,3230.8,3.12614962]
[1736899979857,0.7913,3231.4,3230.8,3.12614962]
[1736899980059,0.05156118,3231.3,3230.8,3.73081618]
[1736899980659,0.05156118,3231.3,3230.8,3.69986656]
[1736899981766,0.05156118,3231.3,3230.7,0.0309484]
[1736899981971,0.05156118,3231.3,3230.5,3.09541]
[1736899982201,0.08370619,3231.3,3230.5,3.7779426]
[1736899982590,0.08370619,3231.3,3229.2,11.5494714]
[1736899982591,0.7913,3230.9,3230.0,6.01645596]
[1736899982760,0.03214501,3230.8,3230.0,2.92051596]
[1736899982966,0.03214501,3230.8,3230.2,3.09578]
[1736899983165,0.05152795,3230.7,3230.2,3.09578]
[1736899983598,0.05152795,3230.7,3230.0,3.54047248]
[1736899983775,0.05152795,3230.7,3230.4,0.796]
[1736899983970,0.05152795,3230.7,3230.6,3.0954]
[1736899984183,0.7513,3231.2,3230.6,0.03095049]
[1736899984385,0.05152795,3230.7,3230.6,9.04686645]
[1736899984585,0.7513,3231.5,3230.8,3.09517]
[1736899984799,0.7513,3231.5,3230.9,0.309517]
[1736899985299,0.08358429,3231.4,3230.8,3.09517]
[1736899987064,0.08358429,3231.4,3230.2,8.47573]
[1736899987065,0.7513,3231.3,3230.2,8.47573]
[1736899987278,3.09525,3230.8,3229.9,0.61115226]
[1736899987478,0.7513,3230.6,3229.9,0.61115226]
[1736899987668,0.03214501,3230.5,3229.8,3.09614]
[1736899987867,0.05170525,3230.4,3229.8,3.09614]
[1736899988299,0.05170525,3230.4,3229.5,2.92051596]
[1736899988535,0.05170525,3230.4,3229.5,6.01687596]
[1736899989401,0.7513,3230.3,3229.5,1.2192876]
[1736899989600,0.03214501,3230.2,3229.4,3.09654]
[1736899989802,0.03214501,3230.2,3229.5,3.09643]
[1736899989803,0.08370619,3230.2,3229.5,3.09643]
[1736899990868,0.08370619,3230.2,3229.3,5.38]
[1736899991107,0.08370619,3230.2,3229.5,3.09641]
[1736899991685,0.03214501,3230.2,3229.5,3.09641]
[1736899991871,0.05113444,3230.1,3229.5,3.09641]
[1736899993009,0.05113444,3230.1,3229.3,3.09664]
[1736899993216,0.05113444,3230.1,3229.5,3.09644]
[1736899993526,0.825,3230.6,3230.0,3.09597]
[1736899993809,0.825,3231.1,3230.2,3.09571]
[1736899993988,0.825,3231.1,3230.3,0.03095374]
[1736899994383,0.03214501,3231.0,3230.2,3.09571]
[1736899994589,0.03214501,3231.0,3230.2,3.70042797]
[1736899995380,0.825,3231.1,3230.2,3.70042797]
[1736899995695,0.825,3231.1,3230.4,3.0955]
[1736899995892,0.825,3231.1,3230.5,0.03095164]
[1736899996418,0.825,3231.7,3230.7,3.09528]
[1736899996592,0.03214501,3231.6,3230.8,0.309528]
[1736899996989,3.91943,3231.7,3230.8,0.309528]
[1736899997202,0.825,3231.7,3230.8,0.309528]
[1736899997512,0.825,3231.7,3230.9,3.09509]
[1736899997693,0.825,3231.7,3230.8,0.34047643]
[1736899997893,1.748932,3231.7,3230.8,0.34047643]
[1736899998201,1.748932,3231.7,3230.8,3.404698]
[1736899998202,0.03214501,3231.6,3230.8,3.404698]
[1736899998404,1.748932,3231.7,3230.8,0.34047649]
[1736899998405,0.825,3231.7,3230.8,0.34047649]
[1736899998583,0.825,3231.7,3231.0,3.09494]
[1736899998992,0.825,3231.7,3230.8,3.309528]
[1736899999178,0.8291,3232.2,3231.3,2.92051596]
[1736899999407,0.8291,3232.2,3231.6,3.09435]
[1736899999604,0.04604521,3232.1,3231.7,0.03094025]
[1736900000216,0.04604521,3232.1,3231.9,6.81931596]
[1736900000603,0.8291,3232.6,3231.9,3.8988]
[1736900000902,0.04637795,3232.5,3231.9,3.8988]
[1736900002223,0.04637795,3232.5,3231.9,4.88382537]
[1736900002425,0.04637795,3232.5,3231.9,4.91476245]
[1736900002789,0.04637795,3232.5,3231.9,4.88382537]
[1736900004298,0.04637795,3232.5,3231.9,1.78972537]
[1736900004518,0.07852296,3232.5,3231.9,0.98502537]
[1736900004843,0.04637795,3232.5,3231.9,0.98502537]
[1736900005133,0.04637795,3232.5,3232.0,0.41101823]
[1736900006313,0.04637795,3232.5,3232.0,3.09404]
[1736900007608,0.04637795,3232.5,3232.0,3.12497691]
[1736900007792,0.04637795,3232.5,3232.3,2.92051596]
[1736900007993,0.04637795,3232.5,3232.3,6.04519962]
[1736900008197,0.03214501,3232.9,3232.3,3.09375]
[1736900008431,0.04681035,3232.4,3232.3,3.09375]
[1736900008640,0.03214501,3232.9,3232.3,3.483595]
[1736900008800,0.8291,3233.0,3232.3,3.483595]
[1736900009001,0.04681035,3232.8,3232.3,3.483595]
[1736900009196,0.8291,3233.0,3232.3,3.483595]
[1736900009511,0.03214501,3232.9,3232.3,3.483595]
[1736900009710,0.04681035,3232.8,3232.4,0.3483595]
[1736900010233,0.8291,3233.0,3232.5,3.09349]
[1736900010441,0.04681035,3232.7,3232.5,3.09349]
[1736900010738,0.8291,3233.0,3232.5,3.09349]
[1736900011142,0.04536671,3232.9,3232.5,3.09349]
[1736900011432,0.04536671,3232.9,3232.6,0.34418495]
[1736900012023,0.04536671,3232.9,3232.4,0.3483595]
[1736900012024,0.07751172,3232.9,3232.4,0.3483595]
[1736900012239,0.04536671,3232.9,3232.3,2.92051596]
[1736900013125,0.04536671,3232.9,3232.4,0.0309328]
[1736900013300,0.04536671,3232.9,3232.3,6.04517829]
[1736900015043,0.04536671,3232.9,3232.3,2.95144829]
[1736900015334,0.04536671,3232.9,3232.4,3.09367]
[1736900015502,0.04536671,3232.9,3232.5,0.60451183]
[1736900017640,0.04536671,3232.9,3232.5,3.72900417]
[1736900017933,0.04536671,3232.9,3232.5,3.69807183]
[1736900018104,0.04536671,3232.9,3232.5,0.60451183]
[1736900018299,0.04536671,3232.9,3232.3,2.92051596]
[1736900018935,0.07751172,3232.9,3232.1,3.89863]
[1736900020138,0.07751172,3232.9,3232.0,3.55050895]
[1736900020314,0.07751172,3232.9,3232.1,0.76296043]
[1736900021242,3.85849,3232.8,3232.1,0.76296043]
[1736900021457,0.03214501,3232.7,3232.1,0.76296043]
[1736900021609,0.07883151,3232.7,3232.1,0.76296043]
[1736900023716,0.0466865,3232.7,3232.2,3.12479685]
[1736900023919,0.0466865,3232.7,3232.5,3.09349]
[1736900024227,0.7652,3233.1,3232.6,3.09348]
[1736900024648,0.04651471,3233.0,3232.6,3.09348]
[1736900027222,0.04651471,3233.0,3232.6,3.12441158]
[1736900027857,0.04651471,3233.0,3232.5,0.62311165]
[1736900028042,0.07865972,3233.0,3232.3,2.92051596]
[1736900028219,0.7652,3233.1,3232.3,3.62918006]
[1736900028415,0.04519787,3232.9,3232.3,3.62918006]
[1736900028636,0.7652,3233.1,3232.3,6.72286006]
[1736900028862,0.04519787,3232.8,3232.3,6.6919256]
[1736900029063,0.03214501,3233.0,3232.4,0.60619206]
[1736900029247,0.7652,3233.1,3232.4,0.60619206]
[1736900029248,0.04519787,3232.7,3232.4,0.60619206]
[1736900029440,0.7652,3233.1,3232.4,1.33600383]
[1736900029652,0.04510922,3232.6,3232.3,6.01419596]
[1736900029825,0.03214501,3233.0,3232.3,6.01419596]
[1736900030038,0.03214501,3233.0,3232.3,3.09368]
[1736900030227,0.04511476,3232.9,3232.3,3.09368]